[Event "Titled Tuesday Blitz May 10 Early 2022"]
[White "Petrov, Martin"]
[Black "Lashkin, Jegor"]
[WhiteFideId "2911086"]
[BlackFideId "13907808"]
[WhiteElo "2343"]
[BlackElo "2368"]
[Result "0-1"]
[Round "05"]
[TimeControl "180+1"]
[Date "2022.05.10"]
[WhiteClock "0:00:03"]
[BlackClock "0:00:07"]

1. c4 {[%clk 0:03:00]}  e5 {[%clk 0:02:59]} 2. d3 {[%clk 0:03:00]}  Nf6 {[%clk 0:02:59]} 3. Nf3 {[%clk 0:03:00]}  Nc6 {[%clk 0:02:59]} 4. a3 {[%clk 0:02:58]}  d5 {[%clk 0:02:53]} 5. cxd5 {[%clk 0:02:59]}  Nxd5 {[%clk 0:02:53]} 6. e4 {[%clk 0:03:00]}  Nf6 {[%clk 0:02:53]} 7. Be2 {[%clk 0:02:57]}  a5 {[%clk 0:02:52]} 8. O-O {[%clk 0:02:54]}  Bc5 {[%clk 0:02:52]} 9. Be3 {[%clk 0:02:50]}  Bb6 {[%clk 0:02:52]} 10. Nc3 {[%clk 0:02:47]}  O-O {[%clk 0:02:51]} 11. Na4 {[%clk 0:02:39]}  Ba7 {[%clk 0:02:51]} 12. Rc1 {[%clk 0:02:38]}  Qe7 {[%clk 0:02:40]} 13. Nc5 {[%clk 0:02:19]}  Rd8 {[%clk 0:02:37]} 14. h3 {[%clk 0:02:16]}  Bb6 {[%clk 0:02:17]} 15. Qc2 {[%clk 0:02:11]}  h6 {[%clk 0:02:04]} 16. Rfd1 {[%clk 0:02:11]}  Be6 {[%clk 0:02:03]} 17. Nxb7 {[%clk 0:02:07]}  Rdb8 {[%clk 0:01:40]} 18. Bxb6 {[%clk 0:02:01]}  cxb6 {[%clk 0:01:33]} 19. Qxc6 {[%clk 0:02:01]}  Rxb7 {[%clk 0:01:34]} 20. Nxe5 {[%clk 0:01:56]}  Rc8 {[%clk 0:01:25]} 21. Qb5 {[%clk 0:01:55]}  Rc5 {[%clk 0:01:25]} 22. Rxc5 {[%clk 0:01:16]}  bxc5 {[%clk 0:01:26]} 23. Qxa5 {[%clk 0:01:16]}  Rxb2 {[%clk 0:01:17]} 24. Rd2 {[%clk 0:01:00]}  Rb1+ {[%clk 0:01:14]} 25. Rd1 {[%clk 0:01:01]}  Rb2 {[%clk 0:01:15]} 26. Bf1 {[%clk 0:00:58]}  Qd6 {[%clk 0:00:48]} 27. Qc3 {[%clk 0:00:49]}  Rb3 {[%clk 0:00:41]} 28. Qa1 {[%clk 0:00:43]}  Qb6 {[%clk 0:00:35]} 29. a4 {[%clk 0:00:40]}  Qa5 {[%clk 0:00:30]} 30. Rb1 {[%clk 0:00:32]}  Rxb1 {[%clk 0:00:24]} 31. Qxb1 {[%clk 0:00:32]}  Qxa4 {[%clk 0:00:24]} 32. Qb8+ {[%clk 0:00:33]}  Kh7 {[%clk 0:00:20]} 33. Qc7 {[%clk 0:00:33]}  Qd4 {[%clk 0:00:13]} 34. Nxf7 {[%clk 0:00:32]}  c4 {[%clk 0:00:12]} 35. Nd8 {[%clk 0:00:19]}  Bg8 {[%clk 0:00:07]} 36. Nc6 {[%clk 0:00:17]}  Qc5 {[%clk 0:00:05]} 37. d4 {[%clk 0:00:15]}  Qg5 {[%clk 0:00:05]} 38. f4 {[%clk 0:00:12]}  Qg3 {[%clk 0:00:05]} 39. Qe5 {[%clk 0:00:09]}  Qe3+ {[%clk 0:00:05]} 40. Kh2 {[%clk 0:00:08]}  Qxe4 {[%clk 0:00:05]} 41. Qxe4+ {[%clk 0:00:08]}  Nxe4 {[%clk 0:00:06]} 42. Ne5 {[%clk 0:00:08]}  Nd6 {[%clk 0:00:06]} 43. Be2 {[%clk 0:00:06]}  Bd5 {[%clk 0:00:06]} 44. Kg1 {[%clk 0:00:03]}  c3 {[%clk 0:00:06]} 45. Bd3+ {[%clk 0:00:03]}  Be4 {[%clk 0:00:06]} 46. Bxe4+ {[%clk 0:00:02]}  Nxe4 {[%clk 0:00:07]} 47. Nd3 {[%clk 0:00:02]}  Kg6 {[%clk 0:00:05]} 48. Kf1 {[%clk 0:00:02]}  Kf5 {[%clk 0:00:05]} 49. Ke2 {[%clk 0:00:02]}  Ke6 {[%clk 0:00:05]} 50. Ke3 {[%clk 0:00:03]}  Ng3 {[%clk 0:00:05]} 51. Nb4 {[%clk 0:00:02]}  Nf5+ {[%clk 0:00:04]} 52. Kd3 {[%clk 0:00:03]}  Nh4 {[%clk 0:00:05]} 53. Kxc3 {[%clk 0:00:03]}  Nxg2 {[%clk 0:00:05]} 54. d5+ {[%clk 0:00:03]}  Kd6 {[%clk 0:00:05]} 55. Kd4 {[%clk 0:00:03]}  Nxf4 {[%clk 0:00:06]} 56. h4 {[%clk 0:00:04]}  Ng6 {[%clk 0:00:05]} 57. h5 {[%clk 0:00:04]}  Nf4 {[%clk 0:00:06]} 58. Nc2 {[%clk 0:00:03]}  Nxd5 {[%clk 0:00:05]} 59. Ne1 {[%clk 0:00:03]}  Nf6 {[%clk 0:00:05]} 60. Nf3 {[%clk 0:00:03]}  Nxh5 {[%clk 0:00:06]} 61. Ke4 {[%clk 0:00:03]}  Ke6 {[%clk 0:00:05]} 62. Nd4+ {[%clk 0:00:03]}  Kf6 {[%clk 0:00:06]} 63. Nf3 {[%clk 0:00:04]}  g6 {[%clk 0:00:05]} 64. Nh2 {[%clk 0:00:04]}  Ng3+ {[%clk 0:00:06]} 65. Kf3 {[%clk 0:00:04]}  Nf5 {[%clk 0:00:05]} 66. Kf4 {[%clk 0:00:05]}  h5 {[%clk 0:00:05]} 67. Nf3 {[%clk 0:00:04]}  Ng7 {[%clk 0:00:05]} 68. Kg3 {[%clk 0:00:03]}  Ne6 {[%clk 0:00:06]} 69. Nh4 {[%clk 0:00:03]}  Ng5 {[%clk 0:00:06]} 70. Ng2 {[%clk 0:00:03]}  Ne4+ {[%clk 0:00:06]} 71. Kf4 {[%clk 0:00:03]}  Nd6 {[%clk 0:00:07]} 72. Ne3 {[%clk 0:00:03]}  g5+ {[%clk 0:00:07]} 73. Kg3 {[%clk 0:00:03]}  Nf5+ {[%clk 0:00:06]} 74. Nxf5 {[%clk 0:00:03]}  Kxf5 {[%clk 0:00:07]} 0-1


[Site "https://www.chess.com"]

[Event "Titled Tuesday Blitz May 10 Early 2022"]
[White "Pourkashiyan, Atousa"]
[Black "Lauridsen, Jesper Morch"]
[WhiteFideId "12502014"]
[BlackFideId "1401890"]
[WhiteElo "2247"]
[BlackElo "2215"]
[Result "0-1"]
[Round "05"]
[TimeControl "180+1"]
[Date "2022.05.11"]
[WhiteClock "0:02:47"]
[BlackClock "0:01:50"]

1. e4 {[%clk 0:03:00]}  e5 {[%clk 0:02:56]} 2. Nf3 {[%clk 0:03:00]}  Nc6 {[%clk 0:02:54]} 3. Bb5 {[%clk 0:03:00]}  Nf6 {[%clk 0:02:53]} 4. d3 {[%clk 0:03:00]}  Bc5 {[%clk 0:02:52]} 5. O-O {[%clk 0:03:00]}  d6 {[%clk 0:02:52]} 6. c3 {[%clk 0:03:00]}  O-O {[%clk 0:02:48]} 7. h3 {[%clk 0:03:00]}  a6 {[%clk 0:02:42]} 8. Ba4 {[%clk 0:03:00]}  Ba7 {[%clk 0:02:39]} 9. Nbd2 {[%clk 0:02:59]}  Ne7 {[%clk 0:02:32]} 10. Re1 {[%clk 0:02:58]}  Ng6 {[%clk 0:02:31]} 11. Nf1 {[%clk 0:02:59]}  d5 {[%clk 0:02:15]} 12. exd5 {[%clk 0:02:57]}  Qxd5 {[%clk 0:02:14]} 13. Bb3 {[%clk 0:02:57]}  Qd6 {[%clk 0:02:07]} 14. Ng3 {[%clk 0:02:55]}  e4 {[%clk 0:01:55]} 15. dxe4 {[%clk 0:02:53]}  Qxg3 {[%clk 0:01:54]} 16. e5 {[%clk 0:02:47]}  Bxh3 {[%clk 0:01:50]} 0-1


[Site "https://www.chess.com"]

[Event "Titled Tuesday Blitz May 10 Early 2022"]
[White "Prieto Aranguren, Alain"]
[Black "Turutin, Alexander"]
[WhiteFideId "2268906"]
[BlackFideId "4180623"]
[WhiteElo "2235"]
[BlackElo "2402"]
[Result "1-0"]
[Round "05"]
[TimeControl "180+1"]
[Date "2022.05.11"]
[WhiteClock "0:00:33"]
[BlackClock "0:00:02"]

1. d4 {[%clk 0:02:58]}  Nf6 {[%clk 0:02:58]} 2. c4 {[%clk 0:02:58]}  g6 {[%clk 0:02:58]} 3. Nc3 {[%clk 0:02:58]}  Bg7 {[%clk 0:02:59]} 4. e4 {[%clk 0:02:57]}  d6 {[%clk 0:02:59]} 5. Be2 {[%clk 0:02:57]}  O-O {[%clk 0:02:59]} 6. Nf3 {[%clk 0:02:57]}  e5 {[%clk 0:02:58]} 7. d5 {[%clk 0:02:56]}  Na6 {[%clk 0:02:54]} 8. O-O {[%clk 0:02:50]}  Nc5 {[%clk 0:02:54]} 9. Qc2 {[%clk 0:02:50]}  a5 {[%clk 0:02:54]} 10. Bg5 {[%clk 0:02:45]}  h6 {[%clk 0:02:54]} 11. Be3 {[%clk 0:02:44]}  Ng4 {[%clk 0:02:52]} 12. Bxc5 {[%clk 0:02:44]}  dxc5 {[%clk 0:02:53]} 13. h3 {[%clk 0:02:39]}  Nf6 {[%clk 0:02:51]} 14. Nxe5 {[%clk 0:02:40]}  Nxd5 {[%clk 0:02:42]} 15. cxd5 {[%clk 0:02:37]}  Bxe5 {[%clk 0:02:41]} 16. Rac1 {[%clk 0:02:29]}  g5 {[%clk 0:02:18]} 17. Bg4 {[%clk 0:02:20]}  Bxg4 {[%clk 0:02:12]} 18. hxg4 {[%clk 0:02:21]}  Qf6 {[%clk 0:02:08]} 19. g3 {[%clk 0:02:01]}  Rfe8 {[%clk 0:01:49]} 20. Kg2 {[%clk 0:01:56]}  Qg6 {[%clk 0:01:33]} 21. Rfe1 {[%clk 0:01:44]}  Re7 {[%clk 0:01:22]} 22. Nd1 {[%clk 0:01:43]}  Bd4 {[%clk 0:01:18]} 23. f3 {[%clk 0:01:27]}  b6 {[%clk 0:00:58]} 24. Ne3 {[%clk 0:01:26]}  Bxe3 {[%clk 0:00:58]} 25. Rxe3 {[%clk 0:01:25]}  Qf6 {[%clk 0:00:58]} 26. Rh1 {[%clk 0:01:22]}  Kg7 {[%clk 0:00:57]} 27. Qc3 {[%clk 0:01:19]}  Qxc3 {[%clk 0:00:55]} 28. bxc3 {[%clk 0:01:19]}  f6 {[%clk 0:00:48]} 29. c4 {[%clk 0:01:18]}  Kg6 {[%clk 0:00:48]} 30. Rhe1 {[%clk 0:01:17]}  Rae8 {[%clk 0:00:47]} 31. Kf2 {[%clk 0:01:15]}  h5 {[%clk 0:00:47]} 32. gxh5+ {[%clk 0:01:12]}  Kxh5 {[%clk 0:00:48]} 33. Ke2 {[%clk 0:01:12]}  g4 {[%clk 0:00:45]} 34. Rh1+ {[%clk 0:01:06]}  Kg6 {[%clk 0:00:45]} 35. Rh4 {[%clk 0:00:58]}  gxf3+ {[%clk 0:00:44]} 36. Kxf3 {[%clk 0:00:58]}  Re5 {[%clk 0:00:36]} 37. Kf4 {[%clk 0:00:58]}  Kg7 {[%clk 0:00:35]} 38. g4 {[%clk 0:00:57]}  Rh8 {[%clk 0:00:32]} 39. Rxh8 {[%clk 0:00:55]}  Kxh8 {[%clk 0:00:33]} 40. Rh3+ {[%clk 0:00:55]}  Kg7 {[%clk 0:00:34]} 41. Rh5 {[%clk 0:00:54]}  Re7 {[%clk 0:00:31]} 42. a4 {[%clk 0:00:53]}  Re8 {[%clk 0:00:29]} 43. g5 {[%clk 0:00:53]}  fxg5+ {[%clk 0:00:28]} 44. Rxg5+ {[%clk 0:00:53]}  Kf7 {[%clk 0:00:27]} 45. e5 {[%clk 0:00:53]}  Rh8 {[%clk 0:00:28]} 46. e6+ {[%clk 0:00:52]}  Ke8 {[%clk 0:00:26]} 47. Rg7 {[%clk 0:00:52]}  Kd8 {[%clk 0:00:19]} 48. Ke5 {[%clk 0:00:51]}  Rh1 {[%clk 0:00:08]} 49. Rd7+ {[%clk 0:00:47]}  Kc8 {[%clk 0:00:09]} 50. d6 {[%clk 0:00:40]}  cxd6+ {[%clk 0:00:06]} 51. Kxd6 {[%clk 0:00:40]}  Rd1+ {[%clk 0:00:01]} 52. Kc6 {[%clk 0:00:40]}  Re1 {[%clk 0:00:02]} 53. Re7 {[%clk 0:00:35]}  Kd8 {[%clk 0:00:02]} 54. Rd7+ {[%clk 0:00:34]}  Kc8 {[%clk 0:00:02]} 55. Rd6 {[%clk 0:00:34]}  Rb1 {[%clk 0:00:02]} 56. e7 {[%clk 0:00:33]} 1-0


[Site "https://www.chess.com"]

[Event "Titled Tuesday Blitz May 10 Early 2022"]
[White "Raahul V S"]
[Black "Stoleriu, George"]
[WhiteFideId "25035525"]
[BlackFideId "1227505"]
[WhiteElo "2185"]
[BlackElo "2194"]
[Result "0-1"]
[Round "05"]
[TimeControl "180+1"]
[Date "2022.05.11"]
[WhiteClock "0:01:18"]
[BlackClock "0:00:19"]

1. b3 {[%clk 0:02:56]}  e5 {[%clk 0:02:24]} 2. Bb2 {[%clk 0:02:54]}  Nc6 {[%clk 0:02:25]} 3. c4 {[%clk 0:02:53]}  g6 {[%clk 0:02:25]} 4. e3 {[%clk 0:02:50]}  Bg7 {[%clk 0:02:26]} 5. Nf3 {[%clk 0:02:49]}  d6 {[%clk 0:02:27]} 6. d4 {[%clk 0:02:46]}  Nge7 {[%clk 0:02:27]} 7. dxe5 {[%clk 0:02:41]}  dxe5 {[%clk 0:02:28]} 8. Nc3 {[%clk 0:02:39]}  O-O {[%clk 0:02:27]} 9. Be2 {[%clk 0:02:33]}  Bf5 {[%clk 0:02:25]} 10. O-O {[%clk 0:02:28]}  Nb4 {[%clk 0:02:22]} 11. e4 {[%clk 0:02:25]}  Bg4 {[%clk 0:02:21]} 12. Nd5 {[%clk 0:02:19]}  Nbc6 {[%clk 0:02:15]} 13. Nxe5 {[%clk 0:02:04]}  Bxe2 {[%clk 0:01:09]} 14. Nxe7+ {[%clk 0:01:55]}  Qxe7 {[%clk 0:01:00]} 15. Nxc6 {[%clk 0:01:54]}  Qxe4 {[%clk 0:00:58]} 16. Re1 {[%clk 0:01:50]}  Bxd1 {[%clk 0:00:31]} 17. Rxe4 {[%clk 0:01:46]}  Bxb2 {[%clk 0:00:31]} 18. Ne7+ {[%clk 0:01:46]}  Kg7 {[%clk 0:00:31]} 19. Rxd1 {[%clk 0:01:47]}  Rad8 {[%clk 0:00:29]} 20. Ree1 {[%clk 0:01:34]}  c6 {[%clk 0:00:24]} 21. b4 {[%clk 0:01:21]}  Bf6 {[%clk 0:00:23]} 22. Rxd8 {[%clk 0:01:18]}  Rxd8 {[%clk 0:00:22]} 23. b5 {[%clk 0:01:18]}  Bxe7 {[%clk 0:00:19]} 0-1


[Site "https://www.chess.com"]

[Event "Titled Tuesday Blitz May 10 Early 2022"]
[White "Redzisz, Michal"]
[Black "Shohat, Yotam"]
[WhiteFideId "21816107"]
[BlackFideId "2813955"]
[WhiteElo "2004"]
[BlackElo "2119"]
[Result "1-0"]
[Round "05"]
[TimeControl "180+1"]
[Date "2022.05.11"]
[WhiteClock "0:00:06"]
[BlackClock "0:00:02"]

1. Nf3 {[%clk 0:03:00]}  Nf6 {[%clk 0:02:52]} 2. b3 {[%clk 0:03:00]}  g6 {[%clk 0:02:52]} 3. Bb2 {[%clk 0:03:01]}  Bg7 {[%clk 0:02:52]} 4. e3 {[%clk 0:02:53]}  O-O {[%clk 0:02:52]} 5. d4 {[%clk 0:02:53]}  d6 {[%clk 0:02:51]} 6. c4 {[%clk 0:02:52]}  Nbd7 {[%clk 0:02:50]} 7. Be2 {[%clk 0:02:51]}  e5 {[%clk 0:02:49]} 8. dxe5 {[%clk 0:02:50]}  Ng4 {[%clk 0:02:44]} 9. O-O {[%clk 0:02:49]}  Ndxe5 {[%clk 0:02:43]} 10. Qc2 {[%clk 0:02:41]}  Bf5 {[%clk 0:02:32]} 11. Qc1 {[%clk 0:02:25]}  Re8 {[%clk 0:02:14]} 12. h3 {[%clk 0:02:14]}  Nxf3+ {[%clk 0:02:07]} 13. Bxf3 {[%clk 0:02:15]}  Ne5 {[%clk 0:02:07]} 14. Be2 {[%clk 0:02:05]}  Qh4 {[%clk 0:02:04]} 15. Nd2 {[%clk 0:01:54]}  Re7 {[%clk 0:00:59]} 16. Nf3 {[%clk 0:01:35]}  Qh6 {[%clk 0:00:51]} 17. Nxe5 {[%clk 0:01:27]}  dxe5 {[%clk 0:00:49]} 18. Rd1 {[%clk 0:00:38]}  Rae8 {[%clk 0:00:41]} 19. Bf3 {[%clk 0:00:28]}  e4 {[%clk 0:00:29]} 20. Be2 {[%clk 0:00:27]}  Qg5 {[%clk 0:00:18]} 21. Bxg7 {[%clk 0:00:26]}  Bxh3 {[%clk 0:00:12]} 22. Bf1 {[%clk 0:00:19]}  Kxg7 {[%clk 0:00:12]} 23. Qc3+ {[%clk 0:00:16]}  Kg8 {[%clk 0:00:12]} 24. Rd5 {[%clk 0:00:17]}  Bf5 {[%clk 0:00:08]} 25. Rad1 {[%clk 0:00:17]}  c6 {[%clk 0:00:09]} 26. Rd8 {[%clk 0:00:17]}  h5 {[%clk 0:00:07]} 27. Qa5 {[%clk 0:00:15]}  b6 {[%clk 0:00:05]} 28. Qa4 {[%clk 0:00:13]}  h4 {[%clk 0:00:04]} 29. Qxc6 {[%clk 0:00:12]}  Rxd8 {[%clk 0:00:04]} 30. Rxd8+ {[%clk 0:00:12]}  Kg7 {[%clk 0:00:05]} 31. Qd6 {[%clk 0:00:10]}  h3 {[%clk 0:00:05]} 32. Kh2 {[%clk 0:00:08]}  hxg2 {[%clk 0:00:05]} 33. Bxg2 {[%clk 0:00:09]}  Bg4 {[%clk 0:00:03]} 34. Qd4+ {[%clk 0:00:08]}  f6 {[%clk 0:00:04]} 35. Qd6 {[%clk 0:00:08]}  f5 {[%clk 0:00:02]} 36. Qd4+ {[%clk 0:00:07]}  Kh6 {[%clk 0:00:02]} 37. Rh8+ {[%clk 0:00:07]}  Rh7 {[%clk 0:00:03]} 38. Rxh7+ {[%clk 0:00:05]}  Kxh7 {[%clk 0:00:04]} 39. Qd7+ {[%clk 0:00:05]}  Kh6 {[%clk 0:00:04]} 40. Qxa7 {[%clk 0:00:05]}  Qh4+ {[%clk 0:00:04]} 41. Kg1 {[%clk 0:00:06]}  Bf3 {[%clk 0:00:04]} 42. Qc7 {[%clk 0:00:05]}  Qg4 {[%clk 0:00:03]} 43. Qf4+ {[%clk 0:00:05]}  Qxf4 {[%clk 0:00:03]} 44. exf4 {[%clk 0:00:06]}  Bd1 {[%clk 0:00:03]} 45. Bf1 {[%clk 0:00:06]}  Bc2 {[%clk 0:00:03]} 46. b4 {[%clk 0:00:05]}  Bb1 {[%clk 0:00:03]} 47. a4 {[%clk 0:00:05]}  Kg7 {[%clk 0:00:03]} 48. a5 {[%clk 0:00:05]}  bxa5 {[%clk 0:00:03]} 49. bxa5 {[%clk 0:00:06]}  e3 {[%clk 0:00:02]} 50. fxe3 {[%clk 0:00:06]} 1-0


[Site "https://www.chess.com"]

[Event "Titled Tuesday Blitz May 10 Early 2022"]
[White "Reprintsev, Alexander"]
[Black "Przybylski, Wojciech"]
[WhiteFideId "14100541"]
[BlackFideId "1117599"]
[WhiteElo "2108"]
[BlackElo "2133"]
[Result "1-0"]
[Round "05"]
[TimeControl "180+1"]
[Date "2022.05.11"]
[WhiteClock "0:00:55"]
[BlackClock "0:00:01"]

1. e4 {[%clk 0:02:32]}  e5 {[%clk 0:02:55]} 2. f4 {[%clk 0:02:27]}  d5 {[%clk 0:02:54]} 3. exd5 {[%clk 0:02:27]}  exf4 {[%clk 0:02:54]} 4. Nf3 {[%clk 0:02:26]}  Nf6 {[%clk 0:02:52]} 5. Bb5+ {[%clk 0:02:26]}  Bd7 {[%clk 0:02:51]} 6. Bxd7+ {[%clk 0:02:25]}  Nbxd7 {[%clk 0:02:49]} 7. c4 {[%clk 0:02:23]}  Qe7+ {[%clk 0:02:41]} 8. Qe2 {[%clk 0:02:23]}  Qxe2+ {[%clk 0:02:39]} 9. Kxe2 {[%clk 0:02:24]}  Bd6 {[%clk 0:02:38]} 10. d4 {[%clk 0:02:23]}  b6 {[%clk 0:02:38]} 11. Nc3 {[%clk 0:02:21]}  h6 {[%clk 0:02:33]} 12. Nb5 {[%clk 0:02:21]}  g5 {[%clk 0:02:32]} 13. Kd3 {[%clk 0:02:18]}  a6 {[%clk 0:02:27]} 14. Nxd6+ {[%clk 0:02:18]}  cxd6 {[%clk 0:02:27]} 15. b3 {[%clk 0:02:18]}  Kd8 {[%clk 0:02:24]} 16. Ba3 {[%clk 0:02:17]}  Kc7 {[%clk 0:02:23]} 17. Rhe1 {[%clk 0:02:16]}  Rae8 {[%clk 0:02:19]} 18. Rac1 {[%clk 0:02:12]}  Rxe1 {[%clk 0:02:17]} 19. Rxe1 {[%clk 0:02:12]}  Re8 {[%clk 0:02:17]} 20. Rxe8 {[%clk 0:02:08]}  Nxe8 {[%clk 0:02:17]} 21. Ke4 {[%clk 0:02:07]}  Ng7 {[%clk 0:02:17]} 22. h4 {[%clk 0:01:58]}  f5+ {[%clk 0:02:15]} 23. Kd3 {[%clk 0:01:58]}  g4 {[%clk 0:02:15]} 24. Ng1 {[%clk 0:01:52]}  Nf6 {[%clk 0:02:07]} 25. Bc1 {[%clk 0:01:50]}  Ngh5 {[%clk 0:02:06]} 26. Ne2 {[%clk 0:01:46]}  f3 {[%clk 0:02:04]} 27. gxf3 {[%clk 0:01:46]}  gxf3 {[%clk 0:02:03]} 28. Nf4 {[%clk 0:01:38]}  Nxf4+ {[%clk 0:00:35]} 29. Bxf4 {[%clk 0:01:39]}  Nh5 {[%clk 0:00:35]} 30. Bxh6 {[%clk 0:01:33]}  f4 {[%clk 0:00:36]} 31. Kd2 {[%clk 0:01:06]}  Kd7 {[%clk 0:00:04]} 32. Ke1 {[%clk 0:01:06]}  Ng3 {[%clk 0:00:02]} 33. Bxf4 {[%clk 0:01:01]}  Nf5 {[%clk 0:00:02]} 34. h5 {[%clk 0:00:57]}  Nxd4 {[%clk 0:00:02]} 35. h6 {[%clk 0:00:55]}  Ke7 {[%clk 0:00:01]} 36. h7 {[%clk 0:00:55]} 1-0


[Site "https://www.chess.com"]

[Event "Titled Tuesday Blitz May 10 Early 2022"]
[White "Rodchenkov, Sergey D."]
[Black "Clawitter, Craig"]
[WhiteFideId "4168712"]
[BlackFideId "2023105"]
[WhiteElo "2306"]
[BlackElo "2296"]
[Result "1-0"]
[Round "05"]
[TimeControl "180+1"]
[Date "2022.05.11"]
[WhiteClock "0:01:12"]
[BlackClock "0:00:02"]

1. e4 {[%clk 0:03:00]}  e6 {[%clk 0:02:57]} 2. d4 {[%clk 0:03:00]}  d5 {[%clk 0:02:55]} 3. Nc3 {[%clk 0:03:01]}  Bb4 {[%clk 0:02:53]} 4. e5 {[%clk 0:02:59]}  c5 {[%clk 0:02:54]} 5. a3 {[%clk 0:02:59]}  Bxc3+ {[%clk 0:02:55]} 6. bxc3 {[%clk 0:03:00]}  Ne7 {[%clk 0:02:55]} 7. Qg4 {[%clk 0:03:00]}  Qc7 {[%clk 0:02:55]} 8. Qxg7 {[%clk 0:03:00]}  Rg8 {[%clk 0:02:56]} 9. Qxh7 {[%clk 0:03:00]}  cxd4 {[%clk 0:02:57]} 10. Ne2 {[%clk 0:03:00]}  Nbc6 {[%clk 0:02:57]} 11. f4 {[%clk 0:03:00]}  dxc3 {[%clk 0:02:57]} 12. Qd3 {[%clk 0:02:52]}  d4 {[%clk 0:02:56]} 13. Nxd4 {[%clk 0:02:35]}  Nxd4 {[%clk 0:02:57]} 14. Qxd4 {[%clk 0:02:36]}  Bd7 {[%clk 0:02:58]} 15. Be3 {[%clk 0:02:29]}  Nf5 {[%clk 0:02:34]} 16. Qd3 {[%clk 0:02:26]}  Nxe3 {[%clk 0:02:18]} 17. Qxe3 {[%clk 0:02:27]}  O-O-O {[%clk 0:01:22]} 18. Rd1 {[%clk 0:02:15]}  Bc6 {[%clk 0:01:18]} 19. Rxd8+ {[%clk 0:02:10]}  Qxd8 {[%clk 0:01:14]} 20. Qxc3 {[%clk 0:02:10]}  Kb8 {[%clk 0:01:14]} 21. Rg1 {[%clk 0:01:39]}  Qh4+ {[%clk 0:01:08]} 22. g3 {[%clk 0:01:29]}  Qxh2 {[%clk 0:01:08]} 23. Qc5 {[%clk 0:01:29]}  Rd8 {[%clk 0:00:55]} 24. Bd3 {[%clk 0:01:18]}  Kc7 {[%clk 0:00:09]} 25. Qf2 {[%clk 0:01:15]}  Qxf2+ {[%clk 0:00:08]} 26. Kxf2 {[%clk 0:01:16]}  Kb6 {[%clk 0:00:06]} 27. g4 {[%clk 0:01:14]}  Rd4 {[%clk 0:00:06]} 28. Ke3 {[%clk 0:01:14]}  Ra4 {[%clk 0:00:06]} 29. g5 {[%clk 0:01:14]}  Rxa3 {[%clk 0:00:06]} 30. g6 {[%clk 0:01:11]}  fxg6 {[%clk 0:00:06]} 31. Rxg6 {[%clk 0:01:12]}  Bd5 {[%clk 0:00:04]} 32. f5 {[%clk 0:01:13]}  Kc5 {[%clk 0:00:05]} 33. f6 {[%clk 0:01:13]}  Ra1 {[%clk 0:00:03]} 34. f7 {[%clk 0:01:13]}  Re1+ {[%clk 0:00:03]} 35. Kd2 {[%clk 0:01:12]}  Rxe5 {[%clk 0:00:02]} 36. f8=Q+ {[%clk 0:01:12]} 1-0


[Site "https://www.chess.com"]

[Event "Titled Tuesday Blitz May 10 Early 2022"]
[White "Rohith Krishna S"]
[Black "Ianov, Viktor"]
[WhiteFideId "46617051"]
[BlackFideId "14102730"]
[WhiteElo "2117"]
[BlackElo "2152"]
[Result "1-0"]
[Round "05"]
[TimeControl "180+1"]
[Date "2022.05.11"]
[WhiteClock "0:00:24"]
[BlackClock "0:00:19"]

1. e4 {[%clk 0:02:58]}  d6 {[%clk 0:02:59]} 2. d4 {[%clk 0:02:56]}  Nf6 {[%clk 0:02:59]} 3. Nc3 {[%clk 0:02:55]}  c6 {[%clk 0:02:59]} 4. f4 {[%clk 0:02:56]}  Qb6 {[%clk 0:02:59]} 5. Nf3 {[%clk 0:02:56]}  Bg4 {[%clk 0:02:58]} 6. Be2 {[%clk 0:02:55]}  Bxf3 {[%clk 0:02:57]} 7. Bxf3 {[%clk 0:02:55]}  e5 {[%clk 0:02:57]} 8. fxe5 {[%clk 0:02:55]}  dxe5 {[%clk 0:02:57]} 9. d5 {[%clk 0:02:55]}  Nbd7 {[%clk 0:02:56]} 10. Qe2 {[%clk 0:02:50]}  Be7 {[%clk 0:02:52]} 11. a3 {[%clk 0:02:50]}  O-O {[%clk 0:02:40]} 12. Be3 {[%clk 0:02:46]}  Bc5 {[%clk 0:02:33]} 13. Bxc5 {[%clk 0:02:43]}  Qxc5 {[%clk 0:02:33]} 14. O-O-O {[%clk 0:02:42]}  Rad8 {[%clk 0:02:29]} 15. Rd3 {[%clk 0:02:21]}  Nb6 {[%clk 0:02:27]} 16. Rhd1 {[%clk 0:02:09]}  cxd5 {[%clk 0:02:26]} 17. exd5 {[%clk 0:02:08]}  Nc4 {[%clk 0:02:09]} 18. Na4 {[%clk 0:02:00]}  Qa5 {[%clk 0:01:56]} 19. Rb3 {[%clk 0:02:00]}  b5 {[%clk 0:01:54]} 20. Nc5 {[%clk 0:01:54]}  Qb6 {[%clk 0:01:42]} 21. Na4 {[%clk 0:01:37]}  Qa5 {[%clk 0:01:41]} 22. Nc3 {[%clk 0:01:37]}  a6 {[%clk 0:01:39]} 23. g4 {[%clk 0:01:34]}  h6 {[%clk 0:01:37]} 24. h4 {[%clk 0:01:34]}  Qb6 {[%clk 0:01:29]} 25. g5 {[%clk 0:01:30]}  hxg5 {[%clk 0:01:28]} 26. hxg5 {[%clk 0:01:31]}  Nh7 {[%clk 0:01:27]} 27. Ne4 {[%clk 0:01:29]}  Qg6 {[%clk 0:01:25]} 28. Bh5 {[%clk 0:01:27]}  Qf5 {[%clk 0:01:16]} 29. Rf1 {[%clk 0:01:25]}  Qd7 {[%clk 0:01:15]} 30. Rd3 {[%clk 0:01:10]}  g6 {[%clk 0:01:11]} 31. Bg4 {[%clk 0:01:09]}  Qe7 {[%clk 0:01:10]} 32. Nf6+ {[%clk 0:01:06]}  Kg7 {[%clk 0:00:54]} 33. Qh2 {[%clk 0:00:49]}  Nxg5 {[%clk 0:00:48]} 34. Qh4 {[%clk 0:00:49]}  Rd6 {[%clk 0:00:38]} 35. Nh7 {[%clk 0:00:42]}  f6 {[%clk 0:00:29]} 36. Nxf8 {[%clk 0:00:33]}  Qxf8 {[%clk 0:00:29]} 37. Rh1 {[%clk 0:00:23]}  Kf7 {[%clk 0:00:24]} 38. Be6+ {[%clk 0:00:22]}  Nxe6 {[%clk 0:00:21]} 39. dxe6+ {[%clk 0:00:23]}  Kxe6 {[%clk 0:00:20]} 40. Qg4+ {[%clk 0:00:24]}  f5 {[%clk 0:00:19]} 41. Qxg6+ {[%clk 0:00:24]}  Qf6 {[%clk 0:00:20]} 42. Qe8+ {[%clk 0:00:24]}  Qe7 {[%clk 0:00:19]} 43. Rh6# {[%clk 0:00:24]} 1-0


[Site "https://www.chess.com"]